fUSD/lending_fUSD_20240607
["ID","MTS","AMOUNT","RATE_DAILY","PERIOD"]
[328753348,1717767046402,-158.66835119,0.00029997,4]
[328753349,1717767046413,-500.0,0.00029997,4]
[328753350,1717767046422,-500.0,0.00029997,4]
[328753351,1717767046432,-500.0,0.00029997,4]
[328753352,1717767046441,-500.0,0.00029997,4]
[328753353,1717767046451,-276.5,0.00029997,4]
[328753354,1717767046461,-297.6348837,0.00029997,4]
[328753355,1717767046471,-500.0,0.00029997,4]
[328753356,1717767046483,-500.0,0.00029997,4]
[328753357,1717767046493,-500.0,0.00029997,4]
[328753358,1717767046503,-500.0,0.00029997,4]
[328753359,1717767046512,-500.0,0.00029997,4]
[328753360,1717767046522,-500.0,0.00029997,4]
[328753361,1717767046532,-500.0,0.00029997,4]
[328753362,1717767046542,-500.0,0.00029997,4]
[328753363,1717767046552,-500.0,0.00029997,4]
[328753364,1717767046563,-500.0,0.00029997,4]
[328753365,1717767046573,-500.0,0.00029997,4]
[328753366,1717767046583,-225.19816696,0.00029997,4]
[328753367,1717767046594,-500.0,0.00029997,4]
[328753368,1717767046604,-500.0,0.00029997,4]
[328753369,1717767046614,-500.0,0.00029997,4]
[328753370,1717767046624,-310.98,0.00029997,4]
[328753371,1717767046634,-500.0,0.00029997,4]
[328753372,1717767046647,-500.0,0.00029997,4]
[328753373,1717767046658,-500.0,0.00029997,4]
[328753374,1717767046669,-624.86961018,0.00029997,4]
[328753375,1717767046678,-500.0,0.00029997,4]
[328753376,1717767046689,-383.96300971,0.00029997,4]
[328753377,1717767046700,-431.45,0.00029997,4]
[328753378,1717767046710,-500.0,0.00029997,4]
[328753379,1717767046721,-500.0,0.00029997,4]
[328753380,1717767046734,-541.69288664,0.00029997,4]
[328753381,1717767046751,-500.0,0.00029997,4]
[328753382,1717767046762,-500.0,0.00029997,4]
[328753383,1717767046773,-500.0,0.00029997,4]
[328753384,1717767046783,-500.0,0.00029997,4]
[328753385,1717767046793,-207.79914048,0.00029997,4]
[328753386,1717767046804,-539.34243101,0.00029997,4]
[328753387,1717767046814,-418.09611445,0.00029997,4]
[328753388,1717767046825,-500.0,0.00029997,4]
[328753389,1717767046834,-500.0,0.00029997,4]
[328753390,1717767046844,-500.0,0.00029997,4]
[328753391,1717767046854,-500.0,0.00029997,4]
[328753392,1717767046864,-214.52621744,0.00029997,4]
[328753393,1717767046874,-559.29465409,0.00029997,4]
[328753394,1717767046883,-371.40620376,0.00029997,4]
[328753395,1717767046892,-69339.65077097,0.00029998,2]
[328753396,1717767046902,-1104.19769091,0.00029998,2]
[328753397,1717767046912,-312.27250908,0.00029998,2]
[328753398,1717767046933,-579.23573676,0.00029998,14]
[328753399,1717767046943,-100112.99038346,0.00029998,2]
[328753400,1717767046954,-500.0,0.00029998,4]
[328753401,1717767046964,-500.0,0.00029998,4]
[328753402,1717767046976,-698066.09569563,0.00029998,2]
[328753403,1717767046987,-445.43029862,0.00029998,4]
[328753404,1717767046997,-247.26648662,0.00029998,2]
[328753405,1717767047007,-500.0,0.00029998,4]
[328753406,1717767047017,-500.0,0.00029998,4]
[328753407,1717767047027,-500.0,0.00029998,4]
[328753408,1717767047037,-538.0,0.00029998,4]
[328753409,1717767047047,-528.0,0.00029998,4]
[328753410,1717767047057,-500.0,0.00029998,4]
[328753411,1717767047067,-176.29,0.00029998,4]
[328753412,1717767047077,-586.2,0.00029998,4]
[328753413,1717767047087,-500.0,0.00029998,4]
[328753414,1717767047098,-500.0,0.00029998,4]
[328753415,1717767047108,-547.05424841,0.00029998,4]
[328753416,1717767047118,-500.0,0.00029998,4]
[328753417,1717767047128,-500.0,0.00029998,4]
[328753418,1717767047138,-500.0,0.00029998,4]
[328753419,1717767047149,-500.0,0.00029998,4]
[328753420,1717767047160,-500.0,0.00029998,4]
[328753421,1717767047171,-500.0,0.00029998,4]
[328753422,1717767047182,-500.0,0.00029998,4]
[328753423,1717767047193,-500.0,0.00029998,4]
[328753424,1717767047203,-500.0,0.00029998,4]
[328753425,1717767047213,-500.0,0.00029998,4]
[328753426,1717767047223,-500.0,0.00029998,4]
[328753427,1717767047238,-500.0,0.00029998,4]
[328753428,1717767047248,-500.0,0.00029998,4]
[328753429,1717767047258,-500.0,0.00029998,4]
[328753430,1717767047268,-500.0,0.00029998,4]
[328753431,1717767047278,-500.0,0.00029998,4]
[328753432,1717767047288,-500.0,0.00029998,4]
[328753433,1717767047297,-500.0,0.00029998,4]
[328753434,1717767047307,-500.0,0.00029998,4]
[328753435,1717767047317,-325.09201635,0.00029998,10]
[328753436,1717767047326,-500.0,0.00029998,4]
[328753437,1717767047336,-500.0,0.00029998,4]
[328753438,1717767047346,-169.91270623,0.00029998,4]
[328753439,1717767047357,-716.62,0.00029998,4]
[328753440,1717767047368,-500.0,0.00029998,4]
[328753441,1717767047378,-762.57,0.00029998,4]
[328753442,1717767047388,-500.0,0.00029998,4]
[328753443,1717767047397,-500.0,0.00029998,4]
[328753444,1717767047406,-551.46865193,0.00029999,4]
[328753445,1717767047416,-498.74875,0.00029999,4]
[328753446,1717767047426,-162.17493635,0.00029999,4]
[328753447,1717767047436,-500.0,0.00029999,4]
[328753448,1717767047446,-286.93939502,0.00029999,4]
[328753449,1717767047456,-500.0,0.00029999,4]
[328753450,1717767047467,-500.0,0.00029999,4]
[328753451,1717767047478,-500.0,0.00029999,4]
[328753452,1717767047488,-500.0,0.00029999,4]
[328753453,1717767047498,-500.0,0.00029999,4]
[328753454,1717767047507,-154.82845007,0.00029999,4]
[328753455,1717767047517,-316.92775954,0.00029999,4]
[328753456,1717767047527,-500.0,0.00029999,4]
[328753457,1717767047537,-500.0,0.00029999,4]
[328753458,1717767047546,-500.0,0.00029999,4]
[328753459,1717767047556,-500.0,0.00029999,4]
[328753460,1717767047566,-500.0,0.00029999,4]
[328753461,1717767047575,-500.0,0.00029999,4]
[328753462,1717767047585,-500.0,0.00029999,4]
[328753463,1717767047594,-609.97623253,0.00029999,4]
[328753464,1717767047603,-500.0,0.00029999,4]
[328753465,1717767047613,-500.0,0.00029999,4]
[328753466,1717767047623,-500.0,0.00029999,4]
[328753467,1717767047632,-500.0,0.00029999,4]
[328753468,1717767047645,-500.0,0.00029999,4]
[328753469,1717767047655,-500.0,0.00029999,4]
[328753470,1717767047665,-500.0,0.00029999,4]
[328753471,1717767047677,-500.0,0.00029999,4]
[328753472,1717767047688,-500.0,0.00029999,4]
[328753473,1717767047698,-150.57094869,0.00029999,4]
[328753474,1717767047709,-500.0,0.00029999,4]
[328753475,1717767047719,-500.0,0.00029999,4]
[328753476,1717767047731,-500.0,0.00029999,4]
[328753477,1717767047740,-500.0,0.00029999,4]
[328753478,1717767047750,-500.0,0.00029999,4]
[328753479,1717767047760,-500.0,0.00029999,4]
[328753480,1717767047770,-500.0,0.00029999,4]
[328753481,1717767047780,-624.67273312,0.00029999,4]
[328753482,1717767047789,-795.21,0.00029999,4]
[328753483,1717767047799,-795.21,0.00029999,4]
[328753484,1717767047808,-795.21,0.00029999,4]
[328753485,1717767047818,-795.21,0.00029999,4]
[328753486,1717767047827,-795.21,0.00029999,4]
[328753487,1717767047837,-795.21,0.00029999,4]
[328753488,1717767047850,-795.21,0.00029999,4]
[328753489,1717767047859,-795.21,0.00029999,4]
[328753490,1717767047869,-795.21,0.00029999,4]
[328753491,1717767047879,-795.21,0.00029999,4]
[328753492,1717767047889,-795.21,0.00029999,4]
[328753493,1717767047899,-795.21,0.00029999,4]
[328753494,1717767047909,-795.21,0.00029999,4]
[328753495,1717767047918,-795.21,0.00029999,4]
[328753496,1717767047928,-795.21,0.00029999,4]
[328753497,1717767047938,-795.21,0.00029999,4]
[328753498,1717767047949,-795.21,0.00029999,4]
[328753499,1717767047959,-795.21,0.00029999,4]
[328753500,1717767047969,-795.21,0.00029999,4]
[328753501,1717767047983,-795.21,0.00029999,4]
[328753502,1717767047992,-795.21,0.00029999,4]
[328753503,1717767048002,-795.2231746,0.00029999,4]
[328753504,1717767048012,-651.21,0.00029999,4]
[328753505,1717767048022,-651.21,0.00029999,4]
[328753506,1717767048031,-651.21,0.00029999,4]
[328753507,1717767048040,-651.21,0.00029999,4]
[328753508,1717767048050,-651.21,0.00029999,4]
[328753509,1717767048060,-651.21,0.00029999,4]
[328753510,1717767048070,-651.21,0.00029999,4]
[328753511,1717767048080,-651.21,0.00029999,4]
[328753512,1717767048090,-651.21,0.00029999,4]
[328753513,1717767048099,-651.21,0.00029999,4]
[328753514,1717767048109,-651.21,0.00029999,4]
[328753515,1717767048119,-651.21,0.00029999,4]
[328753516,1717767048129,-651.21,0.00029999,4]
[328753517,1717767048138,-651.21,0.00029999,4]
[328753518,1717767048148,-651.21,0.00029999,4]
[328753519,1717767048158,-651.21,0.00029999,4]
[328753520,1717767048168,-651.21,0.00029999,4]
[328753521,1717767048178,-651.21,0.00029999,4]
[328753522,1717767048188,-651.21,0.00029999,4]
[328753523,1717767048197,-651.21,0.00029999,4]
[328753524,1717767048207,-651.21,0.00029999,4]
[328753525,1717767048216,-651.41695452,0.00029999,4]
[328753526,1717767048226,-500.0,0.00029999,4]
[328753527,1717767048237,-620.40237363,0.00029999,4]
[328753528,1717767048247,-1440.81,0.00029999,4]
[328753529,1717767048257,-1440.81,0.00029999,4]
[328753530,1717767048267,-1440.81,0.00029999,4]
[328753531,1717767048276,-500.0,0.00029999,4]
[328753532,1717767048287,-1440.81,0.00029999,4]
[328753533,1717767048297,-1440.81,0.00029999,4]
[328753534,1717767048306,-500.0,0.00029999,4]
[328753535,1717767048316,-1440.81,0.00029999,4]
[328753536,1717767048326,-453.57531977,0.00029999,4]
[328753537,1717767048335,-1440.81,0.00029999,4]
[328753538,1717767048345,-1440.81,0.00029999,4]
[328753539,1717767048355,-1440.81,0.00029999,4]
[328753540,1717767048364,-500.0,0.00029999,4]
[328753541,1717767048374,-1440.81,0.00029999,4]
[328753542,1717767048453,-500.0,0.00029999,4]
[328753543,1717767048463,-1440.81,0.00029999,4]
[328753544,1717767048473,-631.72191102,0.00029999,4]
[328753545,1717767048487,-1440.81,0.00029999,4]
[328753546,1717767048496,-1440.81,0.00029999,4]
[328753547,1717767048506,-1440.81,0.00029999,4]
[328753548,1717767048515,-1440.81,0.00029999,4]
[328753549,1717767048525,-1440.81,0.00029999,4]
[328753550,1717767048535,-1440.81,0.00029999,4]
[328753551,1717767048545,-1440.81,0.00029999,4]
[328753552,1717767048555,-1440.81,0.00029999,4]
[328753553,1717767048566,-1440.81,0.00029999,4]
[328753554,1717767048575,-1440.81,0.00029999,4]
[328753555,1717767048585,-1441.012551,0.00029999,4]
[328753556,1717767048595,-2395.97,0.00029999,4]
[328753557,1717767048604,-2395.97,0.00029999,4]
[328753558,1717767048614,-2395.97,0.00029999,4]
[328753559,1717767048624,-2395.97,0.00029999,4]
[328753560,1717767048635,-2395.97,0.00029999,4]
[328753561,1717767048648,-2395.97,0.00029999,4]
[328753562,1717767048659,-2395.97,0.00029999,4]
[328753563,1717767048668,-2395.97,0.00029999,4]
[328753564,1717767048678,-2395.97,0.00029999,4]
[328753565,1717767048687,-2395.97,0.00029999,4]
[328753566,1717767048697,-500.0,0.00029999,4]
[328753567,1717767048707,-2395.97,0.00029999,4]
[328753568,1717767048716,-500.0,0.00029999,4]
[328753569,1717767048727,-406.01398436,0.00029999,4]
[328753570,1717767048740,-2395.97,0.00029999,4]
[328753571,1717767048750,-2395.97,0.00029999,4]
[328753572,1717767048762,-2395.97,0.00029999,4]
[328753573,1717767048772,-2395.97,0.00029999,4]
[328753574,1717767048782,-2395.97,0.00029999,4]
[328753575,1717767048792,-2395.97,0.00029999,4]
[328753576,1717767048801,-2395.97,0.00029999,4]
[328753577,1717767048811,-2395.97,0.00029999,4]
[328753578,1717767048821,-2395.97,0.00029999,4]
[328753579,1717767048831,-716.62,0.00029999,4]
[328753580,1717767048840,-2395.97,0.00029999,4]
[328753581,1717767048849,-716.62,0.00029999,4]
[328753582,1717767048859,-2396.16808084,0.00029999,4]
[328753583,1717767048869,-716.62,0.00029999,4]
[328753584,1717767048879,-716.62,0.00029999,4]
[328753585,1717767048889,-716.62,0.00029999,4]
[328753586,1717767048898,-716.62,0.00029999,4]
[328753587,1717767048908,-716.62,0.00029999,4]
[328753588,1717767048918,-716.62,0.00029999,4]
[328753589,1717767048927,-716.62,0.00029999,4]
[328753590,1717767048937,-716.62,0.00029999,4]
[328753591,1717767048946,-716.62,0.00029999,4]
[328753592,1717767048955,-716.62,0.00029999,4]
[328753593,1717767048965,-716.62,0.00029999,4]
[328753594,1717767048975,-716.62,0.00029999,4]
[328753595,1717767048986,-716.62,0.00029999,4]
[328753596,1717767048995,-716.62,0.00029999,4]
[328753597,1717767049005,-716.62,0.00029999,4]
[328753598,1717767049014,-716.62,0.00029999,4]
[328753599,1717767049024,-716.7625,0.00029999,4]
[328753600,1717767049033,-500.0,0.00029999,4]
[328753601,1717767049043,-240.45786795,0.00029999,4]
[328753602,1717767049052,-500.0,0.00029999,4]
[328753603,1717767049062,-453.95857955,0.00029999,4]
[328753604,1717767049072,-500.0,0.00029999,4]
[328753605,1717767049081,-500.0,0.00029999,4]
[328753606,1717767049091,-500.0,0.00029999,4]
[328753607,1717767049100,-500.0,0.00029999,4]
[328753608,1717767049110,-500.0,0.00029999,4]
[328753609,1717767049119,-500.0,0.00029999,4]
[328753610,1717767049128,-500.0,0.00029999,4]
[328753611,1717767049138,-500.0,0.00029999,4]
[328753612,1717767049148,-500.0,0.00029999,4]
[328753613,1717767049158,-500.0,0.00029999,4]
[328753614,1717767049167,-500.0,0.00029999,4]
[328753615,1717767049177,-500.0,0.00029999,4]
[328753616,1717767049186,-500.0,0.00029999,4]
[328753617,1717767049195,-500.0,0.00029999,4]
[328753618,1717767049205,-500.0,0.00029999,4]
[328753619,1717767049214,-500.0,0.00029999,4]
[328753620,1717767049224,-500.0,0.00029999,4]
[328753621,1717767049236,-500.0,0.00029999,4]
[328753622,1717767049246,-250.3593,0.00029999,4]
[328753623,1717767049255,-1049.11,0.00029999,4]
[328753624,1717767049264,-1049.11,0.00029999,4]
[328753625,1717767049273,-1049.11,0.00029999,4]
[328753626,1717767049282,-1049.11,0.00029999,4]
[328753627,1717767049292,-1049.11,0.00029999,4]
[328753628,1717767049301,-528.34372596,0.00029999,4]
[328753629,1717767049428,-520.76627404,0.00029999,4]
[328753630,1717767049438,-1049.11,0.00029999,4]
[328753631,1717767049447,-1049.11,0.00029999,4]
[328753632,1717767049456,-500.0,0.00029999,4]
[328753633,1717767049465,-1049.11,0.00029999,4]
[328753634,1717767049475,-500.0,0.00029999,4]
[328753635,1717767049487,-556.13533456,0.00029999,4]
[328753636,1717767049496,-1049.11,0.00029999,4]
[328753637,1717767049506,-500.0,0.00029999,4]
[328753638,1717767049515,-324.44,0.00029999,4]
[328753639,1717767049524,-1049.11,0.00029999,4]
[328753640,1717767049534,-1049.11,0.00029999,4]
[328753641,1717767049544,-1049.11,0.00029999,4]
[328753642,1717767049554,-256.2650863,0.00029999,4]
[328753643,1717767049570,-792.8449137,0.00029999,4]
[328753644,1717767049579,-1049.11,0.00029999,4]
[328753645,1717767049588,-1049.11,0.00029999,4]
[328753646,1717767049598,-1049.11,0.00029999,4]
[328753647,1717767049607,-1049.11,0.00029999,4]
[328753648,1717767049617,-280.48220993,0.00029999,4]
[328753649,1717767049629,-768.69339007,0.00029999,4]
[328753650,1717767049639,-726.42958814,0.00029999,4]
[328753651,1717767049655,-36.14041186,0.00029999,4]
[328753652,1717767049665,-762.57,0.00029999,4]
[328753653,1717767049674,-762.57,0.00029999,4]
[328753654,1717767049685,-221.93354881,0.00029999,4]
[328753655,1717767049717,-71.91346059,0.00029999,4]
[328753656,1717767049796,226.6238354,0.00022499,2]
[328753657,1717767049813,-7500.0,0.00029898,2]
[328753658,1717767049823,-468.7229906,0.00029999,4]
[328753659,1717767049832,-762.57,0.00029999,4]
[328753660,1717767049842,-762.57,0.00029999,4]
[328753661,1717767049851,-762.57,0.00029999,4]
[328753662,1717767049861,-762.57,0.00029999,4]
[328753663,1717767049870,-762.57,0.00029999,4]
[328753664,1717767049880,-762.57,0.00029999,4]
[328753665,1717767049890,-762.57,0.00029999,4]
[328753666,1717767049899,-168.91535137,0.00029999,4]
[328753667,1717767049911,-593.65464863,0.00029999,4]
[328753668,1717767049921,-762.57,0.00029999,4]
[328753669,1717767049930,-762.57,0.00029999,4]
[328753670,1717767049940,-762.57,0.00029999,4]
[328753671,1717767049950,-762.57,0.00029999,4]
[328753672,1717767049959,-762.57,0.00029999,4]
[328753673,1717767049969,-762.57,0.00029999,4]
[328753674,1717767049979,-762.57783247,0.00029999,4]
[328753675,1717767049989,-500.0,0.00029999,4]
[328753676,1717767049998,-500.0,0.00029999,4]
[328753677,1717767050008,-124.55358981,0.00029999,4]
[328753678,1717767050019,-375.44641019,0.00029999,4]
[328753679,1717767050028,-373.22124704,0.00029999,4]
[328753680,1717767050038,-500.0,0.00029999,4]
[328753681,1717767050047,-500.0,0.00029999,4]
[328753682,1717767050056,-246.01325391,0.00029999,4]
[328753683,1717767050066,-150.0,0.00029999,2]
[328753684,1717767050075,-150.0,0.00029999,7]
[328753685,1717767050084,-150.0,0.00029999,7]
[328753686,1717767050094,-150.0,0.00029999,7]
[328753687,1717767050103,-431.52776326,0.00029999,4]
[328753688,1717767050115,-68.47223674,0.00029999,4]
[328753689,1717767050124,-500.0,0.00029999,4]
[328753690,1717767050133,-500.0,0.00029999,4]
[328753691,1717767050142,-500.0,0.00029999,4]
[328753692,1717767050152,-216.90276326,0.00029999,4]
[328753693,1717767050163,-283.09723674,0.00029999,4]
[328753694,1717767050172,-150.0,0.00029999,7]
[328753695,1717767050182,-500.0,0.00029999,4]
[328753696,1717767050191,-500.0,0.00029999,4]
[328753697,1717767050201,-500.0,0.00029999,4]
[328753698,1717767050211,-500.0,0.00029999,4]
[328753699,1717767050220,-500.0,0.00029999,4]
[328753700,1717767050231,-500.0,0.00029999,4]
[328753701,1717767050240,-389.52156321,0.00029999,4]
[328753702,1717767050252,-110.47843679,0.00029999,4]
[328753703,1717767050262,-150.0,0.00029999,7]
[328753704,1717767050271,-500.0,0.00029999,4]
[328753705,1717767050283,-500.0,0.00029999,4]
[328753706,1717767050292,-500.0,0.00029999,4]
[328753707,1717767050302,-628.17291597,0.00029999,4]
[328753708,1717767050312,-390.30603341,0.00029999,4]
[328753709,1717767050322,-150.0,0.00029999,7]
[328753710,1717767050331,-150.0,0.00029999,7]
[328753711,1717767050341,-156.87943336,0.00029999,7]
[328753712,1717767050351,-500.0,0.00029999,4]
[328753713,1717767050360,-500.0,0.00029999,4]
[328753714,1717767050371,-500.0,0.00029999,4]
[328753715,1717767050380,-151.0,0.00029999,7]
[328753716,1717767050389,-177.52012532,0.00029999,4]
[328753717,1717767050400,-500.0,0.00029999,4]
[328753718,1717767050410,-500.0,0.00029999,4]
[328753719,1717767050422,-500.0,0.00029999,4]
[328753720,1717767050431,-500.0,0.00029999,4]
[328753721,1717767050442,-500.0,0.00029999,4]
[328753722,1717767050452,-500.0,0.00029999,4]
[328753723,1717767050462,-375.62654114,0.00029999,4]
[328753724,1717767050471,-350.97186,0.00029999,2]
[328753725,1717767050481,-153.0,0.00029999,5]
[328753726,1717767050491,-874.13111313,0.0003,2]
[328753727,1717767050634,-1883.86888687,0.0003,2]
[328753728,1717767050649,-217.76538951,0.0003,30]
[328753729,1717767050659,-9077.84789254,0.0003,13]
[328753730,1717767224140,150000.0,0.00014,2]
[328753731,1717767224172,5657.71034225,0.00014,2]
[328753732,1717767302164,487.50147685,0.0003,46]
[328753735,1717767462162,-788.37399683,0.00025,30]
[328753736,1717767462193,-900.0,0.00029,30]
[328753737,1717767481926,-150.0,0.00029997,27]
[328753738,1717767572694,300.0,0.0002836,120]
[328753742,1717767733879,-300.0,0.00030132,120]
[328753744,1717767943123,-33481.60798685,0.00019451,2]
[328753745,1717768034118,-4309.14,0.00019451,2]
[328753746,1717768152132,-15511.2489,0.00019451,2]
[328753747,1717768152166,-2681.60179725,0.00019451,2]
[328753748,1717768171180,-54814.74564936,0.00019451,2]
[328753749,1717768171204,-5004.64459068,0.00021697,2]
[328753750,1717768171228,-3539.0,0.000226,3]
[328753751,1717768171252,-262.64896186,0.0002301,2]
[328753752,1717768171275,-17416.20890276,0.00024,3]
[328753753,1717768171298,-1362.92,0.00024,2]
[328753754,1717768171324,-260.5,0.00024384,2]
[328753755,1717768171346,-578.37296242,0.00025744,14]
[328753756,1717768171370,-398.51,0.00025745,2]
[328753757,1717768171392,-34323.49893292,0.000265,2]
[328753768,1717768232400,-396.22,0.00026495,2]
[328753769,1717768232411,-124.93045734,0.000265,2]
[328753770,1717768232664,-3810.50001624,0.000265,2]
[328753771,1717768232676,-7028.89931554,0.000265,2]
[328753791,1717768238281,-1675.61166773,0.000265,2]
[328753792,1717768238294,-3996.27564704,0.000265,2]
[328753793,1717768238307,-14519.82316119,0.000265,2]
[328753794,1717768238317,-185.85360678,0.00026536,2]
[328753795,1717768238328,-185.85360672,0.0002691,2]
[328753796,1717768238340,-185.85360672,0.00027284,2]
[328753797,1717768238350,-263.13,0.00027284,2]
[328753798,1717768238360,-260.5,0.00027537,2]
[328753799,1717768238369,-462.56,0.00027579,2]
[328753800,1717768238380,-250.0,0.00027645,2]
[328753801,1717768238390,-185.85360672,0.00027657,2]
[328753802,1717768238400,-258.98,0.00027663,2]
[328753803,1717768238410,-157.34,0.00027671,2]
[328753804,1717768238420,-250.0,0.00027689,2]
[328753805,1717768238430,-398.51,0.00028009,2]
[328753806,1717768238440,-185.85360672,0.00028031,2]
[328753807,1717768238451,-1000.0,0.00028131,2]
[328753808,1717768238462,-185.85360672,0.00028405,2]
[328753809,1717768238472,-506.55200895,0.00028405,8]
[328753810,1717768238483,-160.09,0.00028476,2]
[328753811,1717768238493,-1299.42409849,0.00028498,2]
[328753812,1717768238503,-1521.2255,0.000287,2]
[328753813,1717768238513,-168.82,0.00028764,2]
[328753814,1717768238523,-185.85360672,0.00028779,2]
[328753815,1717768238534,-304.0,0.000288,8]
[328753817,1717768238544,-496.0,0.000288,8]
[328753819,1717768238554,-2954.0,0.000288,2]
[328753820,1717768238564,-2232.26762405,0.00029,3]
[328753821,1717768238575,-185.85360672,0.00029152,15]
[328753822,1717768238584,-154.2745858,0.00029337,2]
[328753823,1717768238594,-165.168,0.00029405,2]
[328753824,1717768238604,-154.48393235,0.00029417,2]
[328753825,1717768238614,-156.02640146,0.00029424,2]
[328753826,1717768238624,-189.27280631,0.00029445,2]
[328753827,1717768238635,-155.03146614,0.00029474,2]
[328753828,1717768238645,-155.10434995,0.00029482,2]
[328753829,1717768238655,-156.02640146,0.00029485,2]
[328753830,1717768238666,-150.99802264,0.00029505,2]
[328753831,1717768238676,-156.02640146,0.00029509,2]
[328753832,1717768238686,-189.27280631,0.00029519,2]
[328753833,1717768238696,-185.85360672,0.00029526,15]
[328753834,1717768238707,-155.10434995,0.00029571,2]
[328753835,1717768238718,-154.54095258,0.00029636,2]
[328753836,1717768238728,-155.03146614,0.00029654,2]
[328753837,1717768238738,-189.27280631,0.00029661,2]
[328753838,1717768238748,-103.64246792,0.00029665,2]
[328753839,1717768238761,-50.63211788,0.00029665,2]
[328753840,1717768238771,-11972.03,0.0002969,6]
[328753841,1717768238782,-697.36653125,0.000297,2]
[328753842,1717768238792,-2500.0,0.000297,2]
[328753843,1717768238802,-161.41697492,0.00029705,2]
[328753844,1717768238812,-155.10434995,0.0002971,2]
[328753845,1717768238823,-152.88286152,0.00029717,2]
[328753847,1717768238834,-155.10434995,0.00029725,2]
[328753850,1717768238844,-150.0,0.00029726,2]
[328753851,1717768238854,-153.6406525,0.00029742,2]
[328753853,1717768238864,-166.66666666,0.00029749,2]
[328753856,1717768238874,-500.0,0.00029757,2]
[328753858,1717768238883,-200.0,0.00029757,2]
[328753859,1717768238893,-168.34414588,0.00029763,2]
[328753862,1717768238903,-154.2745858,0.00029776,2]
[328753865,1717768238913,-189.27280631,0.0002979,2]
[328753867,1717768238923,-161.23,0.0002979,2]
[328753868,1717768238932,-154.84877957,0.00029792,2]
[328753870,1717768238942,-112512.30829205,0.00029798,14]
[328753872,1717768238951,-1493.6081,0.000298,2]
[328753874,1717768238962,-117445.58718481,0.000298,2]
[328753876,1717768238972,-500.0,0.000298,2]
[328753878,1717768238981,-524.68050183,0.000298,2]
[328753880,1717768238991,-500.0,0.000298,2]
[328753882,1717768239007,-500.0,0.000298,2]
[328753884,1717768239016,-500.0,0.000298,2]
[328753885,1717768239026,-500.0,0.000298,2]
[328753886,1717768239038,-153.6406525,0.00029814,2]
[328753887,1717768239051,-150.0,0.00029825,2]
[328753888,1717768239061,-500.0,0.00029862,4]
[328753889,1717768239071,-500.0,0.00029862,4]
[328753890,1717768239083,-500.0,0.00029863,4]
[328753891,1717768239094,-225.19816696,0.00029863,4]
[328753892,1717768239105,-493.15045242,0.00029863,4]
[328753893,1717768239116,-500.0,0.00029863,4]
[328753894,1717768239127,-500.0,0.00029863,4]
[328753895,1717768239140,-621.19294492,0.00029863,4]
[328753896,1717768239150,-557.72637829,0.00029863,4]
[328753897,1717768239160,-500.0,0.00029863,4]
[328753898,1717768239171,-500.0,0.00029863,4]
[328753899,1717768239182,-500.0,0.00029863,4]
[328753900,1717768239192,-500.0,0.00029863,4]
[328753901,1717768239203,-500.0,0.00029863,4]
[328753902,1717768239214,-500.0,0.00029863,4]
[328753903,1717768239225,-544.37076063,0.00029863,4]
[328753904,1717768239235,-158.46,0.00029863,4]